fUST/lending_fUST_20250206
["ID","MTS","AMOUNT","RATE_DAILY","PERIOD"]
[351797206,1738791052971,-500.0,0.00013835,2]
[351797207,1738791052981,-572.17,0.00013835,2]
[351797208,1738791052992,-572.01539065,0.00013835,2]
[351797209,1738791053001,-500.0,0.00013835,2]
[351797210,1738791053011,-188.0,0.00013835,2]
[351797211,1738791053021,-500.0,0.00013835,2]
[351797212,1738791053030,-513.37,0.00013835,2]
[351797213,1738791053040,-500.0,0.00013835,2]
[351797214,1738791053049,-500.0,0.00013835,2]
[351797215,1738791053059,-4864.09,0.00013835,2]
[351797216,1738791053069,-1550.21,0.00013835,2]
[351797217,1738791053079,-500.0,0.00013835,2]
[351797218,1738791053088,-902.1,0.00013835,2]
[351797219,1738791053098,-500.0,0.00013835,2]
[351797220,1738791053108,-945.39,0.00013835,2]
[351797221,1738791053117,-500.0,0.00013835,2]
[351797222,1738791053126,-500.0,0.00013835,2]
[351797223,1738791053136,-500.0,0.00013835,2]
[351797224,1738791053145,-500.0,0.00013835,2]
[351797225,1738791053155,-2785.03,0.00013835,2]
[351797226,1738791053164,-500.0,0.00013835,2]
[351797227,1738791053174,-1000.0,0.00013835,2]
[351797228,1738791053184,-500.0,0.00013835,2]
[351797229,1738791053193,-11898.98,0.00013835,2]
[351797230,1738791053202,-500.0,0.00013835,2]
[351797231,1738791053211,-572.23,0.00013835,2]
[351797232,1738791053221,-500.0,0.00013835,2]
[351797233,1738791053230,-500.0,0.00013835,2]
[351797234,1738791053240,-640.09,0.00013835,2]
[351797235,1738791053249,-2299.81,0.00013835,2]
[351797236,1738791053259,-500.0,0.00013835,2]
[351797237,1738791053268,-500.0,0.00013835,2]
[351797238,1738791053277,-657.59,0.00013835,2]
[351797239,1738791053287,-8095.86,0.00013835,2]
[351797240,1738791053296,-500.0,0.00013835,2]
[351797241,1738791053305,-500.0,0.00013835,2]
[351797242,1738791053315,-2617.77,0.00013835,2]
[351797243,1738791053324,-1502.48,0.00013835,2]
[351797244,1738791053333,-1047.41,0.00013835,2]
[351797245,1738791053342,-500.0,0.00013835,2]
[351797246,1738791053352,-500.0,0.00013835,2]
[351797247,1738791053361,-1340.58,0.00013835,2]
[351797248,1738791053371,-500.0,0.00013835,2]
[351797249,1738791053380,-869.47,0.00013835,2]
[351797250,1738791053389,-500.0,0.00013835,2]
[351797251,1738791053399,-500.0,0.00013835,2]
[351797252,1738791053409,-6032.47,0.00013835,2]
[351797253,1738791053418,-1117.41,0.00013835,2]
[351797254,1738791053427,-500.0,0.00013835,2]
[351797255,1738791053436,-506.19487016,0.00013835,2]
[351797256,1738791053446,-500.0,0.00013835,2]
[351797257,1738791053456,-151.0,0.00013835,2]
[351797258,1738791053465,-500.0,0.00013835,2]
[351797259,1738791053474,-500.0,0.00013835,2]
[351797260,1738791053484,-1450.83,0.00013835,2]
[351797261,1738791053493,-500.0,0.00013835,2]
[351797262,1738791053502,-500.0,0.00013835,2]
[351797263,1738791053512,-2701.31,0.00013835,2]
[351797264,1738791053521,-512.42,0.00013835,2]
[351797265,1738791053531,-500.0,0.00013835,2]
[351797266,1738791053540,-500.0,0.00013835,2]
[351797267,1738791053550,-515.49596102,0.00013835,2]
[351797268,1738791053559,-500.0,0.00013835,2]
[351797269,1738791053569,-500.0,0.00013835,2]
[351797270,1738791053681,-500.0,0.00013835,2]
[351797271,1738791053692,-527.51,0.00013835,2]
[351797272,1738791053701,-34623.88,0.00013835,2]
[351797273,1738791053711,-500.0,0.00013835,2]
[351797274,1738791053721,-500.0,0.00013835,2]
[351797275,1738791053731,-500.0,0.00013835,2]
[351797276,1738791053740,-1601.99,0.00013835,2]
[351797277,1738791053750,-2396.46,0.00013835,2]
[351797278,1738791053760,-500.0,0.00013835,2]
[351797279,1738791053770,-1041.96,0.00013835,2]
[351797280,1738791053779,-500.0,0.00013835,2]
[351797281,1738791053789,-500.0,0.00013835,2]
[351797282,1738791053799,-500.0,0.00013835,2]
[351797283,1738791053808,-4508.7,0.00013835,2]
[351797284,1738791053819,-500.0,0.00013835,2]
[351797285,1738791053828,-389.98335779,0.00013835,2]
[351797286,1738791053837,-5978.7,0.00013835,2]
[351797287,1738791053847,-5574.75,0.00013835,2]
[351797288,1738791053857,-500.0,0.00013835,2]
[351797289,1738791053867,-591.05,0.00013835,2]
[351797290,1738791053879,-500.0,0.00013835,2]
[351797291,1738791053888,-500.0,0.00013835,2]
[351797292,1738791053898,-465.4568436,0.00013835,2]
[351797293,1738791053907,-974.77,0.00013835,2]
[351797294,1738791053916,-313.44923712,0.00013835,2]
[351797295,1738791053926,-10781.86,0.00013835,2]
[351797296,1738791053935,-500.0,0.00013835,2]
[351797297,1738791053945,-657.56,0.00013835,2]
[351797298,1738791053954,-1789.49,0.00013835,2]
[351797299,1738791053964,-500.0,0.00013835,2]
[351797300,1738791053974,-500.0,0.00013835,2]
[351797301,1738791053984,-626.18,0.00013835,2]
[351797302,1738791053994,-7299.39,0.00013835,2]
[351797303,1738791054003,-500.0,0.00013835,2]
[351797304,1738791054013,-2541.07,0.00013835,2]
[351797305,1738791054023,-500.0,0.00013835,2]
[351797306,1738791054033,-1015.89,0.00013835,2]
[351797307,1738791054043,-500.0,0.00013835,2]
[351797308,1738791054052,-906.83,0.00013835,2]
[351797309,1738791054062,-521.34,0.00013835,2]
[351797310,1738791054072,-500.0,0.00013835,2]
[351797311,1738791054081,-2562.04,0.00013835,2]
[351797312,1738791054090,-500.0,0.00013835,2]
[351797313,1738791054100,-567.6,0.00013835,2]
[351797314,1738791054109,-500.0,0.00013835,2]
[351797315,1738791054119,-500.0,0.00013835,2]
[351797316,1738791054128,-500.0,0.00013835,2]
[351797317,1738791054138,-878.38,0.00013835,2]
[351797318,1738791054147,-512.9,0.00013835,2]
[351797319,1738791054157,-500.0,0.00013835,2]
[351797320,1738791054166,-7364.87,0.00013835,2]
[351797321,1738791054176,-151.0,0.00013835,2]
[351797322,1738791054185,-500.0,0.00013835,2]
[351797323,1738791054195,-2614.72,0.00013835,2]
[351797324,1738791054204,-500.0,0.00013835,2]
[351797325,1738791054214,-500.0,0.00013835,2]
[351797326,1738791054223,-2816.47,0.00013835,2]
[351797327,1738791054232,-3821.43,0.00013835,2]
[351797328,1738791054242,-500.0,0.00013835,2]
[351797329,1738791054251,-500.0,0.00013835,2]
[351797330,1738791054260,-500.0,0.00013835,2]
[351797331,1738791054270,-2793.66,0.00013835,2]
[351797332,1738791054278,-66390.87107134,0.00013835,2]
[351797333,1738791054962,-9207.16536587,0.00013835,2]
[351797334,1738791055518,-500.0,0.00013698,2]
[351797335,1738791055528,-7842.62482452,0.00013835,2]
[351797336,1738791055543,-719.089473,0.00013835,2]
[351797345,1738791594456,-884.0,0.000158,6]
[351797346,1738791594484,-160.0,0.00015864,4]
[351797347,1738791594537,-3072.0,0.000159,4]
[351797406,1738792232122,-702.24617206,0.00012495,2]
[351797409,1738792232134,-246.29983604,0.00012495,2]
[351797411,1738792232143,-200.7188643,0.00012514,2]
[351797414,1738792232152,-209.5832698,0.00012593,2]
[351797417,1738792232162,-158.4593464,0.00012676,2]
[351797420,1738792232171,-233.20280137,0.00012844,2]
[351797423,1738792232180,-260.22709154,0.00012844,2]
[351797425,1738792232190,-465.81428474,0.00013371,2]
[351797427,1738792232200,-282.69450581,0.00013424,2]
[351797429,1738792232213,-372.68949419,0.00013424,2]
[351797431,1738792232225,-300.0,0.00013583,2]
[351797433,1738792232234,-10000.0,0.00013584,2]
[351797435,1738792232243,-367.46805796,0.00013598,2]
[351797437,1738792232253,-153.0,0.000136,2]
[351797439,1738792232263,-354.6451938,0.000136,2]
[351797441,1738792232273,-191.1480875,0.000136,2]
[351797443,1738792232283,-153.0,0.000136,2]
[351797445,1738792232293,-154.5151656,0.000136,2]
[351797447,1738792232303,-154.5151656,0.000136,2]
[351797449,1738792232313,-154.5151656,0.000136,2]
[351797451,1738792232323,-154.038189,0.000136,2]
[351797453,1738792232332,-10124.23820979,0.00013679,2]
[351797455,1738792232342,-10000.0,0.00013692,2]
[351797458,1738792232351,-152.0,0.00013694,2]
[351797460,1738792232370,-577.55291076,0.00013697,2]
[351797461,1738792232391,-500.0,0.00013697,2]
[351797464,1738792232414,-500.0,0.00013697,2]
[351797466,1738792232437,-500.0,0.00013697,2]
[351797468,1738792232459,-278.11476789,0.00013697,2]
[351797470,1738792232487,-221.88523211,0.00013697,2]
[351797472,1738792232510,-410.10464318,0.00013697,2]
[351797794,1738792237931,-160.78443588,0.00013697,2]
[351797796,1738792237941,-500.0,0.00013697,2]
[351797798,1738792237950,-502.66595979,0.00013698,2]
[351797800,1738792237959,-502.36438095,0.00013698,2]
[351797802,1738792237969,-500.0,0.00013698,2]
[351797804,1738792237980,-501.87761352,0.00013698,2]
[351797806,1738792237989,-500.36886257,0.00013698,2]
[351797808,1738792237998,-453.24663508,0.00013698,2]
[351797811,1738792238008,-406.53801196,0.00013698,2]
[351797814,1738792238018,-505.12203579,0.00013698,2]
[351797815,1738792238028,-501.02016974,0.00013698,2]
[351797818,1738792238041,-500.0,0.00013698,2]
[351797820,1738792238051,-500.0,0.00013698,2]
[351797822,1738792238061,-500.0,0.00013698,2]
[351797823,1738792238071,-507.48610646,0.00013698,2]
[351797826,1738792238081,-310.09197429,0.00013698,2]
[351797827,1738792238090,-500.0,0.00013698,2]
[351797830,1738792238099,-500.0,0.00013698,2]
[351797831,1738792238110,-624.90807282,0.00013698,2]
[351797834,1738792238120,-306.86299462,0.00013698,2]
[351797836,1738792238130,-570.00038302,0.00013698,2]
[351797838,1738792238140,-660.92,0.00013698,2]
[351797840,1738792238149,-556.35,0.00013698,2]
[351797842,1738792238159,-500.0,0.00013698,2]
[351797844,1738792238168,-500.0,0.00013698,2]
[351797846,1738792238177,-519.1702499,0.00013698,2]
[351797848,1738792238187,-640.69,0.00013698,2]
[351797850,1738792238196,-500.0,0.00013698,2]
[351797852,1738792238206,-500.0,0.00013698,2]
[351797854,1738792238215,-1275.43,0.00013698,2]
[351797856,1738792238226,-767.7,0.00013698,2]
[351797858,1738792238235,-500.0,0.00013698,2]
[351797860,1738792238246,-500.0,0.00013698,2]
[351797861,1738792238255,-552.07,0.00013698,2]
[351797863,1738792238265,-500.0,0.00013698,2]
[351797866,1738792238275,-500.0,0.00013698,2]
[351797868,1738792238285,-500.0,0.00013698,2]
[351797869,1738792238294,-500.0,0.00013698,2]
[351797871,1738792238304,-504.63537477,0.00013698,2]
[351797874,1738792238314,-502.13000181,0.00013698,2]
[351797876,1738792238324,-500.0,0.00013698,2]
[351797877,1738792238333,-500.0,0.00013698,2]
[351797880,1738792238343,-500.0,0.00013698,2]
[351797882,1738792238353,-800.44,0.00013698,2]
[351797884,1738792238362,-500.0,0.00013698,2]
[351797886,1738792238371,-500.0,0.00013698,2]
[351797888,1738792238381,-500.0,0.00013698,2]
[351797890,1738792238390,-500.0,0.00013698,2]
[351797892,1738792238400,-500.0,0.00013698,2]
[351797894,1738792238409,-468.921,0.00013698,2]
[351797896,1738792238418,-500.0,0.00013698,2]
[351797898,1738792238428,-500.0,0.00013698,2]
[351797900,1738792238437,-500.0,0.00013698,2]
[351797901,1738792238446,-500.0,0.00013698,2]
[351797903,1738792238455,-500.0,0.00013698,2]
[351797905,1738792238465,-500.95828207,0.00013698,2]
[351797908,1738792238476,-500.0,0.00013698,2]
[351797910,1738792238486,-500.0,0.00013698,2]
[351797912,1738792238496,-500.0,0.00013698,2]
[351797914,1738792238506,-527.81,0.00013698,2]
[351797915,1738792238516,-500.0,0.00013698,2]
[351797918,1738792238527,-517.57578407,0.00013698,2]
[351797920,1738792238537,-500.0,0.00013698,2]
[351797922,1738792238546,-503.28480552,0.00013698,2]
[351797924,1738792238556,-500.0,0.00013698,2]
[351797926,1738792238566,-500.0,0.00013698,2]
[351797928,1738792238576,-500.0,0.00013698,2]
[351797930,1738792238586,-500.0,0.00013698,2]
[351797932,1738792238595,-500.0,0.00013698,2]
[351797934,1738792238605,-701.11,0.00013698,2]
[351797936,1738792238615,-500.0,0.00013698,2]
[351797938,1738792238624,-560.62,0.00013698,2]
[351797940,1738792238634,-500.0,0.00013698,2]
[351797942,1738792238643,-247.29528043,0.00013698,2]
[351797944,1738792238654,-500.0,0.00013698,2]
[351797946,1738792238664,-514.23,0.00013698,2]
[351797948,1738792238673,-500.0,0.00013698,2]
[351797950,1738792238682,-500.0,0.00013698,2]
[351797952,1738792238692,-500.0,0.00013698,2]
[351797954,1738792238702,-500.0,0.00013698,2]
[351797956,1738792238712,-500.0,0.00013698,2]
[351797958,1738792238721,-500.0,0.00013698,2]
[351797960,1738792238731,-500.0,0.00013698,2]
[351797962,1738792238740,-626.89,0.00013698,2]
[351797964,1738792238750,-500.0,0.00013698,2]
[351797966,1738792238759,-529.22,0.00013698,2]
[351797968,1738792238769,-500.0,0.00013698,2]
[351797970,1738792238778,-500.0,0.00013698,2]
[351797972,1738792238788,-500.0,0.00013698,2]
[351797974,1738792238797,-500.0,0.00013698,2]
[351797976,1738792238807,-500.0,0.00013698,2]
[351797978,1738792238816,-500.0,0.00013698,2]
[351797980,1738792238826,-500.0,0.00013698,2]
[351797983,1738792238839,-500.0,0.00013698,2]
[351797985,1738792238848,-1467.98,0.00013698,2]
[351797987,1738792238857,-500.0,0.00013698,2]
[351797988,1738792238866,-500.0,0.00013698,2]
[351797991,1738792238877,-500.0,0.00013698,2]
[351797993,1738792238887,-500.0,0.00013698,2]
[351797995,1738792238896,-500.0,0.00013698,2]
[351797997,1738792238905,-500.0,0.00013698,2]
[351797999,1738792238915,-500.0,0.00013698,2]
[351798000,1738792238924,-500.0,0.00013698,2]
[351798002,1738792238933,-500.0,0.00013698,2]
[351798005,1738792238943,-500.0,0.00013698,2]
[351798007,1738792238952,-515.94238992,0.00013698,2]
[351798009,1738792238962,-508.1595289,0.00013698,2]
[351798011,1738792238971,-815.1,0.00013698,2]
[351798013,1738792238981,-500.0,0.00013698,2]
[351798015,1738792238990,-500.0,0.00013698,2]
[351798017,1738792239000,-500.0,0.00013698,2]
[351798019,1738792239010,-500.0,0.00013698,2]
[351798036,1738792239173,-500.0,0.00013698,2]
[351798038,1738792239183,-500.0,0.00013698,2]
[351798040,1738792239193,-500.0,0.00013698,2]
[351798042,1738792239203,-500.0,0.00013698,2]
[351798044,1738792239213,-500.0,0.00013698,2]
[351798046,1738792239222,-546.55,0.00013698,2]
[351798048,1738792239232,-500.0,0.00013698,2]
[351798050,1738792239242,-834.95,0.00013698,2]
[351798052,1738792239251,-500.0,0.00013698,2]
[351798054,1738792239261,-500.0,0.00013698,2]
[351798056,1738792239271,-316.12726998,0.00013698,2]
[351798058,1738792239280,-500.0,0.00013698,2]
[351798060,1738792239290,-500.0,0.00013698,2]
[351798063,1738792239300,-500.0,0.00013698,2]
[351798064,1738792239310,-500.0,0.00013698,2]
[351798066,1738792239320,-500.0,0.00013698,2]
[351798068,1738792239329,-500.0,0.00013698,2]
[351798070,1738792239339,-500.0,0.00013698,2]
[351798072,1738792239350,-500.0,0.00013698,2]
[351798074,1738792239360,-500.0,0.00013698,2]
[351798077,1738792239370,-500.0,0.00013698,2]
[351798078,1738792239379,-1168.66,0.00013698,2]
[351798081,1738792239389,-500.0,0.00013698,2]
[351798082,1738792239399,-500.0,0.00013698,2]
[351798085,1738792239410,-542.38,0.00013698,2]
[351798087,1738792239420,-500.0,0.00013698,2]
[351798089,1738792239429,-500.0,0.00013698,2]
[351798091,1738792239439,-501.71058701,0.00013698,2]
[351798094,1738792239449,-500.0,0.00013698,2]
[351798095,1738792239458,-500.0,0.00013698,2]
[351798096,1738792239468,-500.0,0.00013698,2]
[351798097,1738792239479,-500.0,0.00013698,2]
[351798098,1738792239490,-500.0,0.00013698,2]
[351798099,1738792239499,-500.0,0.00013698,2]
[351798100,1738792239508,-500.0,0.00013698,2]
[351798101,1738792239518,-541.66,0.00013698,2]
[351798102,1738792239528,-500.0,0.00013698,2]
[351798103,1738792239537,-500.0,0.00013698,2]
[351798104,1738792239548,-500.0,0.00013698,2]
[351798105,1738792239558,-500.0,0.00013698,2]
[351798106,1738792239567,-500.0,0.00013698,2]
[351798107,1738792239577,-500.0,0.00013698,2]
[351798108,1738792239586,-500.0,0.00013698,2]
[351798109,1738792239596,-810.91,0.00013698,2]
[351798110,1738792239606,-500.0,0.00013698,2]
[351798112,1738792239616,-377.76420344,0.00013698,2]
[351798114,1738792239626,-234.74096042,0.00013698,2]
[351798116,1738792239635,-593.85,0.00013698,2]
[351798118,1738792239645,-500.0,0.00013698,2]
[351798120,1738792239654,-500.0,0.00013698,2]
[351798122,1738792239663,-613.89,0.00013698,2]
[351798124,1738792239673,-500.0,0.00013698,2]
[351798126,1738792239683,-501.06685821,0.00013698,2]
[351798128,1738792239692,-500.0,0.00013698,2]
[351798130,1738792239702,-500.0,0.00013698,2]
[351798132,1738792239711,-500.0,0.00013698,2]
[351798134,1738792239721,-501.44546254,0.00013698,2]
[351798136,1738792239730,-819.5,0.00013698,2]
[351798138,1738792239740,-500.0,0.00013698,2]
[351798140,1738792239749,-1051.12,0.00013698,2]
[351798142,1738792239759,-500.0,0.00013698,2]
[351798144,1738792239769,-503.09197997,0.00013698,2]
[351798146,1738792239778,-2506.79,0.00013698,2]
[351798148,1738792239788,-500.0,0.00013698,2]
[351798150,1738792239797,-1755.08,0.00013698,2]
[351798152,1738792239806,-500.0,0.00013698,2]
[351798154,1738792239816,-500.0,0.00013698,2]
[351798156,1738792239825,-500.0,0.00013698,2]
[351798158,1738792239834,-500.0,0.00013698,2]
[351798160,1738792239844,-872.1,0.00013698,2]
[351798162,1738792239854,-689.61,0.00013698,2]
[351798165,1738792239864,-501.61614363,0.00013698,2]
[351798166,1738792239873,-500.0,0.00013698,2]
[351798168,1738792239883,-1272.93,0.00013698,2]
[351798170,1738792239892,-508.67940819,0.00013698,2]
[351798172,1738792239902,-500.0,0.00013698,2]
[351798174,1738792239911,-500.0,0.00013698,2]
[351798177,1738792239920,-500.0,0.00013698,2]
[351798178,1738792239930,-636.58,0.00013698,2]
[351798180,1738792239940,-652.34,0.00013698,2]
[351798182,1738792239949,-826.2,0.00013698,2]
[351798184,1738792239959,-500.0,0.00013698,2]
[351798186,1738792239968,-500.0,0.00013698,2]
[351798188,1738792239979,-500.0,0.00013698,2]
[351798190,1738792239987,-500.0,0.00013698,2]
[351798192,1738792239997,-500.0,0.00013698,2]
[351798195,1738792240008,-500.0,0.00013698,2]
[351798196,1738792240017,-505.3879968,0.00013698,2]
[351798198,1738792240027,-621.53381031,0.00013698,2]
[351798201,1738792240039,-1034.21,0.00013698,2]
[351798203,1738792240049,-500.0,0.00013698,2]
[351798204,1738792240058,-500.0,0.00013698,2]
[351798207,1738792240068,-500.0,0.00013698,2]
[351798208,1738792240079,-500.0,0.00013698,2]
[351798211,1738792240088,-500.0,0.00013698,2]
[351798213,1738792240098,-500.0,0.00013698,2]
[351798214,1738792240107,-510.38444078,0.00013698,2]
[351798217,1738792240117,-2319.32,0.00013698,2]
[351798219,1738792240128,-500.0,0.00013698,2]
[351798221,1738792240137,-505.14936998,0.00013698,2]
[351798223,1738792240146,-500.0,0.00013698,2]
[351798225,1738792240155,-589.48,0.00013698,2]
[351798227,1738792240176,-500.0,0.00013698,2]
[351798230,1738792240190,-572.17,0.00013698,2]
[351798232,1738792240202,-1529.15,0.00013698,2]
[351798234,1738792240216,-1992.32,0.00013698,2]
[351798236,1738792240228,-802.6,0.00013698,2]
[351798238,1738792240240,-500.0,0.00013698,2]
[351798240,1738792240250,-500.0,0.00013698,2]
[351798242,1738792240260,-500.0,0.00013698,2]
[351798244,1738792240271,-500.0,0.00013698,2]
[351798246,1738792240283,-408.81377868,0.00013698,2]
[351798249,1738792240298,-928.69,0.00013698,2]
[351798251,1738792240309,-500.0,0.00013698,2]
[351798253,1738792240323,-500.0,0.00013698,2]
[351798255,1738792240334,-500.0,0.00013698,2]
[351798257,1738792240345,-623.56,0.00013698,2]
[351798259,1738792240360,-500.0,0.00013698,2]
[351798261,1738792240372,-1000.0,0.00013698,2]
[351798263,1738792240382,-500.0,0.00013698,2]
[351798266,1738792240393,-500.0,0.00013698,2]
[351798268,1738792240405,-500.0,0.00013698,2]
[351798270,1738792240417,-703.34,0.00013698,2]
[351798272,1738792240428,-500.0,0.00013698,2]
[351798274,1738792240438,-640.09,0.00013698,2]
[351798276,1738792240450,-504.46962706,0.00013698,2]
[351798278,1738792240461,-522.14520554,0.00013698,2]
[351798280,1738792240472,-500.0,0.00013698,2]
[351798282,1738792240485,-352.54752496,0.00013698,2]
[351798284,1738792240495,-1040.08,0.00013698,2]
[351798286,1738792240508,-786.97,0.00013698,2]
[351798288,1738792240522,-1571.96,0.00013698,2]
[351798290,1738792240532,-188.0,0.00013698,2]
[351798292,1738792240542,-500.0,0.00013698,2]
[351798294,1738792240554,-1502.48,0.00013698,2]
[351798296,1738792240565,-460.53401954,0.00013698,2]
[351798298,1738792240578,-500.0,0.00013698,2]
[351798300,1738792240588,-500.0,0.00013698,2]
[351798302,1738792240597,-500.0,0.00013698,2]
[351798304,1738792240607,-500.0,0.00013698,2]
[351798306,1738792240616,-500.0,0.00013698,2]
[351798308,1738792240626,-505.19265801,0.00013698,2]
[351798310,1738792240635,-769.78,0.00013698,2]
[351798312,1738792240645,-500.0,0.00013698,2]
[351798314,1738792240655,-505.61923189,0.00013698,2]
[351798316,1738792240664,-500.0,0.00013698,2]
[351798318,1738792240674,-500.0,0.00013698,2]
[351798321,1738792240684,-503.49486909,0.00013698,2]
[351798323,1738792240693,-500.0,0.00013698,2]
[351798325,1738792240703,-503.16944459,0.00013698,2]
[351798327,1738792240712,-500.0,0.00013698,2]
[351798329,1738792240722,-994.51,0.00013698,2]
[351798331,1738792240733,-505.7492854,0.00013698,2]
[351798333,1738792240742,-500.0,0.00013698,2]
[351798335,1738792240752,-500.0,0.00013698,2]
[351798337,1738792240761,-2353.14,0.00013698,2]
[351798339,1738792240771,-500.0,0.00013698,2]
[351798341,1738792240781,-500.0,0.00013698,2]
[351798343,1738792240790,-500.0,0.00013698,2]
[351798345,1738792240800,-583.45,0.00013698,2]
[351798347,1738792240809,-597.13142421,0.00013698,2]
[351798349,1738792240819,-500.0,0.00013698,2]
[351798351,1738792240828,-862.37,0.00013698,2]
[351798353,1738792240837,-710.5,0.00013698,2]
[351798355,1738792240847,-500.0,0.00013698,2]
[351798357,1738792240856,-500.0,0.00013698,2]
[351798359,1738792240866,-500.0,0.00013698,2]
[351798361,1738792240876,-500.0,0.00013698,2]
[351798363,1738792240886,-1707.58,0.00013698,2]
[351798365,1738792240897,-3639.53,0.00013698,2]
[351798367,1738792240906,-500.0,0.00013698,2]
[351798369,1738792240916,-500.0,0.00013698,2]
[351798371,1738792240926,-300.0,0.00013698,2]
[351798373,1738792240936,-500.0,0.00013698,2]
[351798375,1738792240946,-500.0,0.00013698,2]
[351798377,1738792240955,-500.0,0.00013698,2]
[351798379,1738792240964,-500.0,0.00013698,2]
[351798381,1738792240975,-500.0,0.00013698,2]
[351798384,1738792240984,-1424.54,0.00013698,2]
[351798386,1738792240994,-548.35,0.00013698,2]
[351798388,1738792241004,-500.0,0.00013698,2]
[351798390,1738792241013,-974.77,0.00013698,2]
[351798392,1738792241023,-500.0,0.00013698,2]
[351798394,1738792241035,-3742.65,0.00013698,2]
[351798396,1738792241045,-695.22,0.00013698,2]
[351798398,1738792241055,-500.0,0.00013698,2]
[351798400,1738792241064,-500.0,0.00013698,2]
[351798402,1738792241075,-675.77,0.00013698,2]
[351798404,1738792241085,-500.0,0.00013698,2]
[351798406,1738792241095,-500.0,0.00013698,2]
[351798408,1738792241105,-500.0,0.00013698,2]
[351798410,1738792241116,-500.0,0.00013698,2]
[351798412,1738792241126,-500.0,0.00013698,2]
[351798414,1738792241136,-1528.33,0.00013698,2]
[351798416,1738792241145,-500.0,0.00013698,2]
[351798418,1738792241155,-500.0,0.00013698,2]
[351798420,1738792241165,-500.0,0.00013698,2]
[351798422,1738792241175,-1243.06,0.00013698,2]
[351798424,1738792241184,-500.0,0.00013698,2]
[351798426,1738792241195,-1433.78,0.00013698,2]
[351798429,1738792241204,-501.0964944,0.00013698,2]
[351798431,1738792241214,-500.0,0.00013698,2]
[351798433,1738792241225,-500.0,0.00013698,2]
[351798435,1738792241234,-500.0,0.00013698,2]
[351798437,1738792241244,-500.0,0.00013698,2]
[351798439,1738792241253,-500.0,0.00013698,2]
[351798441,1738792241264,-500.0,0.00013698,2]
[351798443,1738792241273,-500.0,0.00013698,2]
[351798445,1738792241283,-680.14,0.00013698,2]
[351798447,1738792241293,-680.14,0.00013698,2]
[351798449,1738792241303,-680.14,0.00013698,2]
[351798451,1738792241313,-680.14,0.00013698,2]
[351798453,1738792241322,-587.01,0.00013698,2]
[351798455,1738792241332,-680.14,0.00013698,2]
[351798457,1738792241342,-680.14,0.00013698,2]
[351798459,1738792241352,-680.14,0.00013698,2]
[351798461,1738792241362,-680.14,0.00013698,2]
[351798463,1738792241372,-680.14,0.00013698,2]
[351798465,1738792241383,-680.14,0.00013698,2]
[351798467,1738792241393,-680.14,0.00013698,2]
[351798469,1738792241402,-680.14,0.00013698,2]
[351798471,1738792241413,-680.14,0.00013698,2]
[351798473,1738792241423,-927.67,0.00013698,2]